fUST/lending_fUST_20250831
["ID","MTS","AMOUNT","RATE_DAILY","PERIOD"]
[382455904,1756632639947,-250.0,0.00018143,2]
[382455905,1756632639956,-267.87327157,0.00018143,2]
[382455906,1756632639966,-151.0,0.00018143,2]
[382455907,1756632639975,-151.0,0.00018143,2]
[382455908,1756632639985,-151.0,0.00018143,2]
[382455909,1756632639994,-151.0,0.00018143,2]
[382455910,1756632640004,-151.0,0.00018143,2]
[382455911,1756632640014,-151.0,0.00018143,2]
[382455913,1756632640023,-151.0,0.00018143,2]
[382455915,1756632640033,-151.0,0.00018143,2]
[382455917,1756632640043,-1306.04122186,0.00018144,2]
[382455919,1756632640052,-480.0,0.0001815,2]
[382455921,1756632640062,-1533.39,0.0001815,2]
[382455923,1756632640071,-1561.38,0.0001815,2]
[382455925,1756632640080,-480.0,0.0001815,2]
[382455927,1756632640090,-3399.83,0.0001815,2]
[382455928,1756632640100,-480.0,0.0001815,2]
[382455929,1756632640110,-3804.94,0.0001815,2]
[382455930,1756632640120,-480.0,0.0001815,2]
[382455931,1756632640130,-495.74,0.0001815,2]
[382455932,1756632640139,-4790.16,0.0001815,2]
[382455933,1756632640149,-735.09,0.0001815,2]
[382455934,1756632640158,-480.0,0.0001815,2]
[382455935,1756632640167,-481.21048396,0.0001815,2]
[382455936,1756632640177,-1379.38,0.0001815,2]
[382455937,1756632640187,-480.0,0.0001815,2]
[382455938,1756632640196,-1706.45,0.0001815,2]
[382455939,1756632640206,-480.0,0.0001815,2]
[382455940,1756632640215,-1737.26,0.0001815,2]
[382455941,1756632640225,-2211.65,0.0001815,2]
[382455942,1756632640234,-1197.39,0.0001815,2]
[382455943,1756632640243,-794.25,0.0001815,2]
[382455944,1756632640255,-480.0,0.0001815,2]
[382455945,1756632640265,-548.92,0.0001815,2]
[382455946,1756632640275,-1690.84,0.0001815,2]
[382455947,1756632640285,-5479.45,0.00018152,2]
[382455948,1756632640295,-480.0,0.00018152,2]
[382455949,1756632640304,-1895.01,0.00018152,2]
[382455950,1756632640314,-7086.94,0.00018152,2]
[382455951,1756632640324,-480.0,0.00018152,2]
[382455952,1756632640333,-674.97,0.00018152,2]
[382455953,1756632640343,-1805.9,0.00018152,2]
[382455954,1756632640352,-481.22132896,0.00018152,2]
[382455955,1756632640362,-881.24,0.00018152,2]
[382455956,1756632640371,-480.0,0.00018152,2]
[382455957,1756632640380,-571.05,0.00018152,2]
[382455958,1756632640390,-480.0,0.00018152,2]
[382455959,1756632640400,-480.0,0.00018152,2]
[382455960,1756632640409,-3353.37,0.00018152,2]
[382455961,1756632640419,-1226.37,0.00018152,2]
[382455963,1756632640428,-480.0,0.00018152,2]
[382455965,1756632640438,-1456.6,0.00018152,2]
[382455967,1756632640447,-2400.85,0.00018152,2]
[382455969,1756632640457,-1903.29,0.00018152,2]
[382455971,1756632640466,-480.0,0.00018152,2]
[382455973,1756632640475,-1430.48,0.00018152,2]
[382455975,1756632640485,-1700.41,0.00018152,2]
[382455977,1756632640494,-1914.87,0.00018152,2]
[382455979,1756632640504,-480.0,0.00018152,2]
[382455981,1756632640513,-979.56,0.00018152,2]
[382455983,1756632640523,-935.01,0.00018152,2]
[382455985,1756632640533,-365.31555138,0.00018152,2]
[382455987,1756632640544,-1384.37,0.00018152,2]
[382455989,1756632640554,-601.79,0.00018152,2]
[382455991,1756632640563,-165.925572,0.00018152,2]
[382455993,1756632640572,-480.0,0.00018152,2]
[382455995,1756632640581,-925.96,0.00018152,2]
[382455997,1756632640590,-480.0,0.00018152,2]
[382455999,1756632640600,-151.0,0.00018152,2]
[382456001,1756632640609,-464.01780481,0.00018152,2]
[382456003,1756632640618,-151.0,0.00018152,2]
[382456005,1756632640627,-2564.45,0.00018152,2]
[382456007,1756632640636,-151.0,0.00018152,2]
[382456009,1756632640645,-151.0,0.00018152,2]
[382456011,1756632640655,-151.0,0.00018152,2]
[382456013,1756632640664,-151.0,0.00018152,2]
[382456015,1756632640673,-2250.42,0.00018152,2]
[382456017,1756632640682,-279.423575,0.00018152,2]
[382456019,1756632640692,-2946.04,0.00018152,2]
[382456021,1756632640701,-151.0,0.00018152,2]
[382456023,1756632640711,-151.0,0.00018152,2]
[382456025,1756632640720,-151.0,0.00018152,2]
[382456027,1756632640729,-151.0,0.00018152,2]
[382456029,1756632640739,-1513.89,0.00018152,2]
[382456031,1756632640748,-151.0,0.00018152,2]
[382456033,1756632640757,-151.0,0.00018152,2]
[382456035,1756632640766,-1003.65,0.00018152,2]
[382456037,1756632640776,-151.0,0.00018152,2]
[382456039,1756632640785,-185.876676,0.00018152,2]
[382456041,1756632640795,-543.35,0.00018152,2]
[382456043,1756632640804,-185.876676,0.00018152,2]
[382456045,1756632640814,-185.876676,0.00018152,2]
[382456047,1756632640825,-151.0,0.00018152,2]
[382456049,1756632640834,-480.0,0.00018152,2]
[382456051,1756632640843,-185.876676,0.00018152,2]
[382456053,1756632640853,-151.0,0.00018152,2]
[382456055,1756632640862,-229.118611,0.00018152,2]
[382456057,1756632640871,-480.0,0.00018152,2]
[382456059,1756632640881,-229.118611,0.00018152,2]
[382456061,1756632640890,-151.0,0.00018152,2]
[382456063,1756632640899,-229.118611,0.00018152,2]
[382456065,1756632640908,-151.0,0.00018152,2]
[382456067,1756632640918,-229.118611,0.00018152,2]
[382456069,1756632640927,-151.0,0.00018152,2]
[382456071,1756632640936,-151.0,0.00018152,2]
[382456073,1756632640945,-151.943352,0.00018152,2]
[382456075,1756632640955,-151.0,0.00018152,2]
[382456077,1756632640964,-652.143732,0.00018152,2]
[382456079,1756632640973,-1374.72,0.00018152,2]
[382456081,1756632640983,-151.0,0.00018152,2]
[382456083,1756632640993,-652.143732,0.00018152,2]
[382456085,1756632641003,-151.0,0.00018152,2]
[382456087,1756632641012,-151.0,0.00018152,2]
[382456089,1756632641022,-652.143732,0.00018152,2]
[382456091,1756632641031,-652.143732,0.00018152,2]
[382456093,1756632641041,-500.0,0.00018153,2]
[382456095,1756632641050,-200.64869876,0.00018153,2]
[382456097,1756632641060,-480.0,0.00018153,2]
[382456099,1756632641069,-480.0,0.00018153,2]
[382456101,1756632641078,-480.0,0.00018153,2]
[382456103,1756632641087,-480.60593743,0.00018153,2]
[382456105,1756632641097,-480.0,0.00018153,2]
[382456107,1756632641107,-480.0,0.00018153,2]
[382456109,1756632641116,-480.0,0.00018153,2]
[382456127,1756632641269,-480.0,0.00018153,2]
[382456130,1756632641289,-2770.45,0.00018153,2]
[382456132,1756632641299,-481.8743327,0.00018153,2]
[382456134,1756632641308,-9809.04,0.00018153,2]
[382456136,1756632641317,-480.0,0.00018153,2]
[382456138,1756632641326,-486.65009353,0.00018153,2]
[382456140,1756632641335,-480.0,0.00018153,2]
[382456142,1756632641345,-844.44,0.00018153,2]
[382456144,1756632641354,-2273.44,0.00018153,2]
[382456146,1756632641363,-484.4394484,0.00018153,2]
[382456148,1756632641372,-480.0,0.00018153,2]
[382456150,1756632641381,-2385.19,0.00018153,2]
[382456152,1756632641391,-480.0,0.00018153,2]
[382456154,1756632641400,-480.0,0.00018153,2]
[382456156,1756632641409,-480.0,0.00018153,2]
[382456158,1756632641419,-500.0,0.00018153,2]
[382456160,1756632641428,-500.0,0.00018153,2]
[382456162,1756632641437,-500.0,0.00018153,2]
[382456164,1756632641446,-500.0,0.00018153,2]
[382456166,1756632641455,-500.47681387,0.00018153,2]
[382456168,1756632641465,-480.0,0.00018153,2]
[382456170,1756632641475,-480.0,0.00018153,2]
[382456172,1756632641484,-481.182224,0.00018153,2]
[382456174,1756632641494,-480.0,0.00018153,2]
[382456176,1756632641503,-4607.93,0.00018153,2]
[382456178,1756632641512,-1473.14,0.00018153,2]
[382456180,1756632641522,-480.0,0.00018153,2]
[382456182,1756632641533,-2642.58,0.00018153,2]
[382456184,1756632641544,-320.96472358,0.00018153,2]
[382456186,1756632641553,-1092.28,0.00018153,2]
[382456188,1756632641563,-480.0,0.00018153,2]
[382456190,1756632641572,-480.0,0.00018153,2]
[382456192,1756632641582,-480.0,0.00018153,2]
[382456194,1756632641592,-229.118611,0.00018153,2]
[382456197,1756632641602,-229.118611,0.00018153,2]
[382456199,1756632641613,-184.038744,0.00018153,2]
[382456201,1756632641622,-229.118611,0.00018153,2]
[382456203,1756632641632,-229.118611,0.00018153,2]
[382456205,1756632641641,-156.167908,0.00018153,2]
[382456207,1756632641650,-151.0,0.00018153,2]
[382456208,1756632641660,-652.143732,0.00018153,2]
[382456210,1756632641670,-151.0,0.00018153,2]
[382456212,1756632641679,-652.143732,0.00018153,2]
[382456214,1756632641688,-178.660336,0.00018153,2]
[382456216,1756632641698,-151.0,0.00018153,2]
[382456218,1756632641707,-652.143732,0.00018153,2]
[382456220,1756632641717,-485.65022059,0.00018153,2]
[382456222,1756632641730,-652.143732,0.00018153,2]
[382456223,1756632641739,-339525.96698781,0.00018154,2]
[382456224,1756632641748,-151.0,0.00018154,2]
[382456225,1756632641758,-151.0,0.00018154,2]
[382456226,1756632641768,-151.0,0.00018154,2]
[382456228,1756632641777,-151.0,0.00018154,2]
[382456230,1756632641787,-151.0,0.00018154,2]
[382456231,1756632641796,-151.0,0.00018154,2]
[382456232,1756632641806,-151.0,0.00018154,2]
[382456233,1756632641815,-151.0,0.00018154,2]
[382456234,1756632641824,-151.0,0.00018154,2]
[382456235,1756632641834,-151.343345,0.00018154,2]
[382456236,1756632641843,-151.0,0.00018154,2]
[382456237,1756632641852,-151.0,0.00018154,2]
[382456238,1756632641862,-151.0,0.00018154,2]
[382456239,1756632641872,-151.0,0.00018154,2]
[382456240,1756632641881,-151.0,0.00018154,2]
[382456241,1756632641891,-151.0,0.00018154,2]
[382456242,1756632641901,-151.158634,0.00018154,2]
[382456243,1756632641910,-151.0,0.00018154,2]
[382456244,1756632641919,-151.0,0.00018154,2]
[382456245,1756632641929,-185.876676,0.00018154,2]
[382456246,1756632641938,-185.876676,0.00018154,2]
[382456247,1756632641948,-185.876676,0.00018154,2]
[382456248,1756632641957,-151.0,0.00018154,2]
[382456249,1756632641967,-185.876676,0.00018154,2]
[382456250,1756632641977,-151.55384,0.00018154,2]
[382456251,1756632641987,-229.118611,0.00018154,2]
[382456252,1756632641996,-229.118611,0.00018154,2]
[382456253,1756632642007,-229.118611,0.00018154,2]
[382456254,1756632642015,-151.0,0.00018154,2]
[382456255,1756632642024,-229.118611,0.00018154,2]
[382456256,1756632642033,-151.0,0.00018154,2]
[382456257,1756632642043,-151.123548,0.00018154,2]
[382456258,1756632642051,-652.143732,0.00018154,2]
[382456259,1756632642060,-151.0,0.00018154,2]
[382456260,1756632642070,-652.143732,0.00018154,2]
[382456261,1756632642078,-151.0,0.00018154,2]
[382456262,1756632642088,-652.143732,0.00018154,2]
[382456263,1756632642097,-652.143732,0.00018154,2]
[382456264,1756632642106,-500.0,0.00018173,2]
[382456265,1756632642115,-500.0,0.00018173,2]
[382456266,1756632642124,-500.0,0.00018173,2]
[382456267,1756632642133,-500.0,0.00018173,2]
[382456268,1756632642143,-500.4653867,0.00018173,2]
[382456269,1756632642152,-500.0,0.00018173,2]
[382456270,1756632642161,-213.6364315,0.00018173,2]
[382456271,1756632642171,-275.0,0.00018188,2]
[382456272,1756632642180,-257.0,0.00018192,2]
[382456273,1756632642190,-2715.12328229,0.00018195,2]
[382456274,1756632642199,-151.0,0.000182,2]
[382456275,1756632642209,-2682.57288641,0.00018244,2]
[382456276,1756632642219,-480.0,0.00018244,2]
[382456277,1756632642229,-497.59,0.00018244,2]
[382456278,1756632642238,-480.0,0.00018244,2]
[382456279,1756632642248,-480.0,0.00018244,2]
[382456280,1756632642259,-1101.13,0.00018244,2]
[382456281,1756632642269,-993.08,0.00018244,2]
[382456282,1756632642279,-2958.25,0.00018244,2]
[382456283,1756632642289,-480.0,0.00018244,2]
[382456284,1756632642298,-884.29,0.00018244,2]
[382456285,1756632642307,-1394.93,0.00018244,2]
[382456286,1756632642317,-549.71,0.00018244,2]
[382456287,1756632642326,-481.8339331,0.00018244,2]
[382456288,1756632642335,-1808.67,0.00018244,2]
[382456289,1756632642345,-1881.37,0.00018244,2]
[382456290,1756632642355,-481.24097186,0.00018244,2]
[382456291,1756632642364,-1480.97,0.00018244,2]
[382456292,1756632642373,-1360.47,0.00018244,2]
[382456293,1756632642383,-481.40713153,0.00018244,2]
[382456294,1756632642392,-480.0,0.00018244,2]
[382456295,1756632642402,-530.79,0.00018244,2]
[382456296,1756632642411,-1672.77,0.00018244,2]
[382456297,1756632642420,-481.2887839,0.00018244,2]
[382456298,1756632642429,-480.0,0.00018244,2]
[382456299,1756632642439,-913.73,0.00018244,2]
[382456300,1756632642448,-500.0,0.00018244,2]
[382456301,1756632642457,-2136.9,0.00018244,2]
[382456302,1756632642466,-1072.5,0.00018244,2]
[382456303,1756632642475,-1707.87,0.00018244,2]
[382456304,1756632642485,-1303.88,0.00018244,2]
[382456305,1756632642495,-480.0,0.00018244,2]
[382456306,1756632642504,-876.98,0.00018244,2]
[382456307,1756632642513,-965.67,0.00018244,2]
[382456308,1756632642523,-1920.8,0.00018244,2]
[382456309,1756632642532,-916.14,0.00018244,2]
[382456310,1756632642542,-480.16636785,0.00018244,2]
[382456311,1756632642551,-480.0,0.00018244,2]
[382456313,1756632642560,-480.0,0.00018244,2]
[382456314,1756632642570,-480.0,0.00018244,2]
[382456315,1756632642580,-1837.44,0.00018244,2]
[382456316,1756632642591,-1819.29,0.00018244,2]
[382456317,1756632642600,-764.27,0.00018244,2]
[382456318,1756632642610,-481.37031112,0.00018244,2]
[382456320,1756632642619,-480.0,0.00018244,2]
[382456322,1756632642629,-963.73,0.00018244,2]
[382456324,1756632642639,-518.11,0.00018244,2]
[382456326,1756632642648,-533.75,0.00018244,2]
[382456328,1756632642657,-418.80347517,0.00018244,2]
[382456329,1756632642667,-1041.77,0.00018244,2]
[382456330,1756632642676,-500.0,0.00018244,2]
[382456331,1756632642686,-500.0,0.00018244,2]
[382456332,1756632642695,-254.252658,0.00018244,2]
[382456334,1756632642704,-579.92,0.00018244,2]
[382456335,1756632642713,-778.0,0.00018244,2]
[382456336,1756632642723,-151.0,0.00018244,2]
[382456337,1756632642732,-151.0,0.00018244,2]
[382456339,1756632642742,-1007.45,0.00018244,2]
[382456341,1756632642751,-2071.86,0.00018244,2]
[382456343,1756632642761,-151.0,0.00018244,2]
[382456344,1756632642770,-480.0,0.00018244,2]
[382456345,1756632642780,-844.59,0.00018244,2]
[382456346,1756632642789,-601.76,0.00018244,2]
[382456347,1756632642799,-674.87,0.00018244,2]
[382456348,1756632642808,-723.21,0.00018244,2]
[382456349,1756632642818,-1222.33,0.00018244,2]
[382456350,1756632642827,-570.35,0.00018244,2]
[382456351,1756632642836,-480.0,0.00018244,2]
[382456352,1756632642846,-1578.77,0.00018244,2]
[382456353,1756632642855,-151.0,0.00018244,2]
[382456354,1756632642866,-892.85,0.00018244,2]
[382456355,1756632642875,-174.328887,0.00018244,2]
[382456356,1756632642884,-480.0,0.00018244,2]
[382456358,1756632642893,-169.664587,0.00018244,2]
[382456360,1756632642903,-151.0,0.00018244,2]
[382456362,1756632642912,-268.76781147,0.00018244,2]
[382456364,1756632642921,-151.0,0.00018244,2]
[382456365,1756632642930,-480.0,0.00018244,2]
[382456366,1756632642940,-151.0,0.00018244,2]
[382456367,1756632642949,-480.0,0.00018244,2]
[382456368,1756632642959,-971.68,0.00018244,2]
[382456369,1756632642968,-1562.44,0.00018244,2]
[382456370,1756632642978,-1940.32,0.00018244,2]
[382456371,1756632642987,-480.0,0.00018244,2]
[382456372,1756632642996,-1550.12,0.00018244,2]
[382456373,1756632643006,-1843.78,0.00018244,2]
[382456374,1756632643015,-480.0,0.00018244,2]
[382456375,1756632643025,-2000.0,0.00018244,15]
[382456376,1756632643035,-280.70832157,0.00018244,15]
[382456377,1756632643044,-480.0,0.00018244,2]
[382456378,1756632643053,-151.0,0.00018244,2]
[382456379,1756632643063,-554.55,0.00018244,2]
[382456380,1756632643073,-151.0,0.00018244,2]
[382456381,1756632643082,-445.54626521,0.00018244,2]
[382456382,1756632643091,-1297.72,0.00018244,2]
[382456383,1756632643101,-151.0,0.00018244,2]
[382456384,1756632643110,-1959.04,0.00018244,2]
[382456385,1756632643119,-480.0,0.00018244,2]
[382456386,1756632643128,-151.0,0.00018244,2]
[382456387,1756632643138,-480.0,0.00018244,2]
[382456388,1756632643147,-480.0,0.00018244,2]
[382456389,1756632643157,-906.98,0.00018244,2]
[382456391,1756632643166,-480.0,0.00018244,2]
[382456393,1756632643176,-480.0,0.00018244,2]
[382456395,1756632643186,-480.0,0.00018244,2]
[382456397,1756632643196,-721.32,0.00018244,2]
[382456399,1756632643206,-650.9,0.00018244,2]
[382456401,1756632643216,-1869.57,0.00018244,2]
[382456402,1756632643226,-2153.77,0.00018244,2]
[382456403,1756632643235,-480.0,0.00018244,2]
[382456404,1756632643245,-151.0,0.00018244,2]
[382456405,1756632643261,-1949.26,0.00018244,2]
[382456406,1756632643270,-151.0,0.00018244,2]
[382456407,1756632643280,-480.0,0.00018244,2]
[382456408,1756632643290,-480.0,0.00018244,2]
[382456409,1756632643299,-3702.65,0.00018244,2]
[382456410,1756632643308,-648.93,0.00018244,2]
[382456411,1756632643318,-1455.08,0.00018244,2]
[382456412,1756632643327,-737.04,0.00018244,2]
[382456413,1756632643337,-1693.91,0.00018244,2]
[382456414,1756632643347,-555.57,0.00018244,2]
[382456415,1756632643356,-1881.33,0.00018244,2]
[382456416,1756632643366,-480.0,0.00018244,2]
[382456417,1756632643375,-151.0,0.00018244,2]
[382456418,1756632643384,-151.0,0.00018244,2]
[382456419,1756632643393,-638.49,0.00018244,2]
[382456420,1756632643402,-151.0,0.00018244,2]
[382456421,1756632643411,-151.0,0.00018244,2]
[382456422,1756632643421,-9350.55,0.00018244,2]
[382456423,1756632643430,-293.103662,0.00018244,2]
[382456424,1756632643440,-887.51,0.00018244,2]
[382456425,1756632643449,-411.47985354,0.00018244,2]
[382456426,1756632643459,-480.0,0.00018244,2]
[382456427,1756632643468,-151.0,0.00018244,2]
[382456428,1756632643477,-151.0,0.00018244,2]
[382456429,1756632643487,-480.0,0.00018244,2]
[382456430,1756632643496,-151.0,0.00018244,2]
[382456431,1756632643506,-151.0,0.00018244,2]
[382456432,1756632643515,-847.23,0.00018244,2]
[382456433,1756632643524,-4682.5,0.00018244,2]
[382456434,1756632643537,-151.83901,0.00018244,2]
[382456435,1756632643547,-151.0,0.00018244,2]
[382456436,1756632643556,-727.79,0.00018244,2]
[382456437,1756632643566,-151.0,0.00018244,2]
[382456438,1756632643575,-151.0,0.00018244,2]
[382456439,1756632643584,-151.0,0.00018244,2]
[382456440,1756632643593,-151.0,0.00018244,2]
[382456441,1756632643602,-822.0,0.00018244,2]
[382456442,1756632643661,-212.672836,0.00018244,2]
[382456443,1756632643670,-151.0,0.00018244,2]
[382456444,1756632643680,-185.876676,0.00018244,2]
[382456445,1756632643690,-480.72266844,0.00018244,2]
[382456446,1756632643700,-185.876676,0.00018244,2]
[382456447,1756632643710,-984.47,0.00018244,2]
[382456448,1756632643719,-185.876676,0.00018244,2]
[382456449,1756632643728,-185.876676,0.00018244,2]
[382456450,1756632643738,-185.876676,0.00018244,2]
[382456451,1756632643748,-185.876676,0.00018244,2]
[382456452,1756632643757,-185.876676,0.00018244,2]
[382456453,1756632643767,-185.876676,0.00018244,2]
[382456454,1756632643775,-480.0,0.00018244,2]
[382456455,1756632643785,-1464.13,0.00018244,2]
[382456456,1756632643794,-480.0,0.00018244,2]
[382456457,1756632643806,-740.8,0.00018244,2]
[382456458,1756632643817,-6863.46,0.00018244,2]
[382456459,1756632643827,-229.118611,0.00018244,2]
[382456460,1756632643838,-229.118611,0.00018244,2]
[382456461,1756632643848,-229.118611,0.00018244,2]
[382456462,1756632643859,-229.118611,0.00018244,2]
[382456463,1756632643869,-229.118611,0.00018244,2]
[382456464,1756632643879,-229.118611,0.00018244,2]
[382456465,1756632643891,-1569.43,0.00018244,2]
[382456466,1756632643901,-151.0,0.00018244,2]
[382456467,1756632643912,-229.118611,0.00018244,2]
[382456468,1756632643923,-229.118602,0.00018244,2]
[382456469,1756632643934,-652.143732,0.00018244,2]
[382456470,1756632643944,-652.143732,0.00018244,2]
[382456471,1756632643954,-151.0,0.00018244,2]
[382456472,1756632643964,-151.0,0.00018244,2]
[382456473,1756632643976,-652.143732,0.00018244,2]
[382456474,1756632643987,-652.143732,0.00018244,2]
[382456475,1756632643998,-151.0,0.00018244,2]
[382456476,1756632644008,-284.048892,0.00018244,2]
[382456477,1756632644019,-652.143732,0.00018244,2]
[382456478,1756632644032,-652.143732,0.00018244,2]
[382456479,1756632644047,-590.8,0.00018244,2]
[382456480,1756632644057,-652.143732,0.00018244,2]
[382456481,1756632644067,-652.143738,0.00018244,2]
[382456482,1756632644077,-480.0,0.00018245,2]
[382456483,1756632644086,-551.65,0.00018245,2]
[382456484,1756632644095,-480.0,0.00018245,2]
[382456485,1756632644104,-1276.96,0.00018245,2]
[382456486,1756632644115,-480.0,0.00018245,2]
[382456487,1756632644125,-826.34,0.00018245,2]
[382456488,1756632644135,-480.0,0.00018245,2]
[382456489,1756632644145,-1234.64,0.00018245,2]
[382456490,1756632644155,-480.0,0.00018245,2]
[382456491,1756632644165,-480.0,0.00018245,2]
[382456492,1756632644175,-480.0,0.00018245,2]
[382456493,1756632644185,-480.0,0.00018245,2]
[382456494,1756632644195,-455.76588376,0.00018245,2]
[382456495,1756632644204,-480.0,0.00018245,2]
[382456496,1756632644213,-481.13981514,0.00018245,2]
[382456497,1756632644223,-480.0,0.00018245,2]
[382456498,1756632644233,-480.0,0.00018245,2]
[382456499,1756632644243,-480.0,0.00018245,2]
[382456500,1756632644252,-480.0,0.00018245,2]
[382456501,1756632644262,-480.0,0.00018245,2]
[382456502,1756632644271,-480.0,0.00018245,2]
[382456503,1756632644281,-567.88,0.00018245,2]
[382456504,1756632644291,-480.0,0.00018245,2]
[382456505,1756632644300,-1282.96,0.00018245,2]
[382456506,1756632644309,-480.0,0.00018245,2]
[382456507,1756632644319,-495.7,0.00018245,2]
[382456508,1756632644328,-480.0,0.00018245,2]
[382456509,1756632644338,-480.0,0.00018245,2]
[382456510,1756632644347,-480.0,0.00018245,2]
[382456511,1756632644356,-637.33,0.00018245,2]
[382456512,1756632644365,-480.0,0.00018245,2]
[382456513,1756632644374,-480.0,0.00018245,2]
[382456514,1756632644383,-298.80298951,0.00018245,2]
[382456515,1756632644392,-480.0,0.00018245,2]
[382456516,1756632644402,-457.77380632,0.00018245,2]
[382456517,1756632644411,-480.0,0.00018245,2]
[382456518,1756632644420,-719.21,0.00018245,2]
[382456519,1756632644430,-480.0,0.00018245,2]
[382456520,1756632644439,-480.0,0.00018245,2]
[382456521,1756632644448,-480.0,0.00018245,2]
[382456522,1756632644457,-480.0,0.00018245,2]
[382456523,1756632644467,-480.0,0.00018245,2]
[382456524,1756632644477,-480.0,0.00018245,2]
[382456525,1756632644487,-480.0,0.00018245,2]
[382456526,1756632644496,-729.36,0.00018245,2]
[382456527,1756632644505,-480.982218,0.00018245,2]
[382456528,1756632644515,-480.0,0.00018245,2]
[382456529,1756632644524,-576.54,0.00018245,2]
[382456530,1756632644534,-480.0,0.00018245,2]
[382456531,1756632644543,-480.0,0.00018245,2]
[382456532,1756632644552,-481.98236086,0.00018245,2]
[382456533,1756632644561,-482.2012894,0.00018245,2]
[382456534,1756632644570,-480.0,0.00018245,2]
[382456535,1756632644580,-3028.397421,0.00018245,2]
[382456536,1756632644589,-480.0,0.00018245,2]
[382456537,1756632644598,-480.0,0.00018245,2]
[382456538,1756632644607,-480.0,0.00018245,2]
[382456539,1756632644617,-480.0,0.00018245,2]
[382456540,1756632644626,-480.0,0.00018245,2]
[382456541,1756632644635,-506.66,0.00018245,2]
[382456542,1756632644644,-480.0,0.00018245,2]
[382456543,1756632644654,-768.31,0.00018245,2]
[382456544,1756632644664,-480.0,0.00018245,2]
[382456545,1756632644674,-480.0,0.00018245,2]
[382456546,1756632644684,-480.0,0.00018245,2]
[382456547,1756632644692,-535.44,0.00018245,2]
[382456548,1756632644702,-480.0,0.00018245,2]
[382456549,1756632644711,-480.0,0.00018245,2]
[382456550,1756632644721,-480.0,0.00018245,2]
[382456551,1756632644730,-480.0,0.00018245,2]
[382456552,1756632644739,-501.86,0.00018245,2]
[382456553,1756632644749,-599.79,0.00018245,2]
[382456554,1756632644758,-480.0,0.00018245,2]
[382456555,1756632644767,-480.0,0.00018245,2]
[382456556,1756632644776,-738.36,0.00018245,2]
[382456557,1756632644786,-151.0,0.00018245,2]
[382456558,1756632644796,-480.0,0.00018245,2]
[382456559,1756632644807,-151.0,0.00018245,2]
[382456560,1756632644818,-480.0,0.00018245,2]
[382456561,1756632644828,-512.56,0.00018245,2]
[382456562,1756632644837,-1782.93,0.00018245,2]
[382456563,1756632644847,-480.0,0.00018245,2]
[382456564,1756632644857,-812.35,0.00018245,2]
[382456565,1756632644867,-480.0,0.00018245,2]
[382456566,1756632644876,-480.0,0.00018245,2]
[382456567,1756632644886,-1225.05,0.00018245,2]
[382456568,1756632644894,-480.0,0.00018245,2]
[382456569,1756632644903,-480.0,0.00018245,2]
[382456570,1756632644913,-1033.69,0.00018245,2]
[382456571,1756632644922,-22671.9842994,0.00018245,2]
[382456572,1756632644932,-480.0,0.00018245,2]